bitfinex-derivatives/quotes_SOLF0:USTF0_20260305
["timestamp","ask_amount","ask_price","bid_price","bid_amount"]
[1772739398649,14.07501376,88.839,88.793,3.9893118]
[1772739399043,14.07501376,88.839,88.77,9.56558323]
[1772739399044,3.94601376,88.838,88.777,3.9893118]
[1772739399543,10.13,88.829,88.781,10.135]
[1772739400237,3.94601376,88.838,88.786,10.135]
[1772739400442,3.94601376,88.838,88.787,3.9893118]
[1772739400646,3.94601376,88.838,88.751,3.9893118]
[1772739400845,3.94601376,88.838,88.781,14.1243118]
[1772739401143,3.94601376,88.838,88.782,3.9893118]
[1772739402445,3.94601376,88.835,88.751,3.9893118]
[1772739402845,10.131,88.822,88.763,3.9893118]
[1772739403149,3.94601376,88.835,88.763,3.9893118]
[1772739404447,10.131,88.815,88.764,10.137]
[1772739404843,3.94601376,88.819,88.763,3.9893118]
[1772739405343,8.49639594,88.85,88.733,3.9893118]
[1772739405344,3.94601376,88.799,88.733,3.9893118]
[1772739406347,10.135,88.783,88.733,3.9893118]
[1772739406951,3.94601376,88.785,88.733,3.9893118]
[1772739407145,10.134,88.791,88.733,3.9893118]
[1772739407545,3.94601376,88.783,88.733,14.1303118]
[1772739407748,3.94601376,88.783,88.733,3.9893118]
[1772739408646,3.94601376,88.799,88.733,3.9893118]
[1772739409051,10.135,88.787,88.734,10.141]
[1772739409247,10.135,88.787,88.734,14.1303118]
[1772739410054,10.134,88.795,88.737,3.9893118]
[1772739410356,11.26,88.85,88.737,3.9893118]
[1772739410357,3.94601376,88.819,88.737,3.9893118]
[1772739411355,3.94601376,88.819,88.758,3.9893118]
[1772739412457,10.131,88.818,88.765,3.9893118]
[1772739413059,10.13,88.827,88.769,3.9893118]
[1772739414358,10.13,88.827,88.778,10.136]
[1772739414760,10.131,88.822,88.769,3.9893118]
[1772739414963,3.94601376,88.826,88.769,3.9893118]
[1772739415254,3.94601376,88.839,88.769,3.9893118]
[1772739415449,10.129,88.833,88.769,3.9893118]
[1772739416361,10.129,88.833,88.782,10.135]
[1772739416555,3.57024459,88.83,88.782,3.9893118]
[1772739417062,3.94601376,88.839,88.782,3.9893118]
[1772739417255,10.129,88.837,88.782,3.9893118]
[1772739417458,3.94601376,88.839,88.789,10.134]
[1772739418360,3.94601376,88.839,88.782,3.9893118]
[1772739419456,10.13,88.831,88.782,3.9893118]
[1772739420161,3.94601376,88.839,88.791,3.67921973]
[1772739420362,10.129,88.841,88.8,3.57024459]
[1772739420957,10.129,88.833,88.791,3.67921973]
[1772739421157,3.97998132,88.829,88.721,3.67921973]
[1772739421362,3.97998132,88.829,88.77,3.57024459]
[1772739421554,10.131,88.82,88.771,3.67921973]
[1772739421864,3.97998132,88.829,88.781,3.67921973]
[1772739422256,3.57024459,88.83,88.781,3.67921973]
[1772739422456,3.57024459,88.84,88.79,3.57024459]
[1772739422858,3.97998132,88.839,88.781,3.67921973]
[1772739424461,10.131,88.822,88.781,3.67921973]
[1772739424657,3.57024459,88.83,88.781,3.67921973]
[1772739425754,10.13,88.83,88.79,3.57024459]
[1772739425956,13.70024459,88.83,88.783,3.67921973]
[1772739426159,3.57024459,88.83,88.783,3.67921973]
[1772739426952,3.57024459,88.82,88.783,3.67921973]
[1772739427257,3.97998132,88.829,88.783,3.67921973]
[1772739428455,10.131,88.822,88.783,3.67921973]
[1772739430365,10.131,88.816,88.783,3.67921973]
[1772739430759,3.97998132,88.829,88.783,3.67921973]
[1772739432367,10.13,88.824,88.783,3.67921973]
[1772739433067,20.254,88.855,88.736,20.281]
[1772739433068,10.132,88.81,88.77,3.57024459]
[1772739433463,10.131,88.815,88.771,3.67921973]
[1772739433969,10.133,88.8,88.771,3.67921973]
[1772739434470,3.97998132,88.799,88.742,3.67921973]
[1772739434768,3.97998132,88.799,88.75,3.57024459]
[1772739434965,3.97998132,88.799,88.75,7.24946432]
[1772739435267,3.97998132,88.799,88.751,3.67921973]
[1772739436070,10.136,88.779,88.751,3.67921973]
[1772739436272,10.136,88.779,88.74,3.57024459]
[1772739436465,10.136,88.779,88.737,3.67921973]
[1772739436865,10.136,88.779,88.739,3.67921973]
[1772739437766,10.136,88.773,88.739,3.67921973]
[1772739437968,3.97998132,88.799,88.739,3.67921973]
[1772739438570,10.137,88.768,88.739,3.67921973]
[1772739438866,3.97998132,88.782,88.721,3.67921973]
[1772739439667,10.136,88.778,88.732,3.67921973]
[1772739439869,3.97998132,88.797,88.732,3.67921973]
[1772739441274,3.97998132,88.782,88.732,3.67921973]
[1772739442369,10.135,88.781,88.734,3.67921973]
[1772739442565,3.97998132,88.782,88.734,3.67921973]
[1772739443065,3.97998132,88.782,88.721,3.67921973]
[1772739443670,10.136,88.773,88.728,10.141]
[1772739444068,10.137,88.765,88.721,3.67921973]
[1772739445377,10.137,88.765,88.724,10.142]
[1772739445577,10.136,88.772,88.725,3.67921973]
[1772739446379,10.136,88.772,88.728,10.141]
[1772739448772,10.136,88.772,88.729,3.97054907]
[1772739449078,3.97998132,88.782,88.729,3.97054907]
[1772739450275,10.136,88.776,88.731,10.141]
[1772739451170,3.69279651,88.799,88.735,3.7982713]
[1772739452379,3.69279651,88.779,88.735,3.7982713]
[1772739452776,3.69279651,88.779,88.722,3.7982713]
[1772739453372,3.69279651,88.776,88.73,10.141]
[1772739453779,3.69279651,88.776,88.722,3.7982713]
[1772739455382,3.69279651,88.776,88.742,10.14]
[1772739456484,10.136,88.774,88.735,10.14]
[1772739456883,10.136,88.774,88.727,10.141]
[1772739457076,3.69279651,88.773,88.727,10.141]
[1772739457676,13.26772533,88.77,88.72,0.00090701]
[1772739457882,3.69279651,88.769,88.72,0.00090701]
[1772739459380,1.96078431,88.803,88.72,0.00090701]
[1772739459381,3.69279651,88.759,88.72,0.00090701]
[1772739460074,3.57554757,88.77,88.721,3.7982713]
[1772739460677,3.69279651,88.774,88.72,3.57645458]
[1772739460678,3.69279651,88.774,88.73,3.57554757]
[1772739460878,3.69279651,88.774,88.731,3.7982713]
[1772739461080,3.57554757,88.8,88.751,3.7982713]
[1772739461277,3.69279651,88.806,88.76,3.57554757]
[1772739463085,3.69279651,88.806,88.761,3.7982713]
[1772739464285,3.69279651,88.806,88.77,3.57554757]
[1772739466282,10.133,88.805,88.761,3.7982713]
[1772739468084,3.69279651,88.806,88.761,3.7982713]
[1772739468283,3.69279651,88.824,88.781,3.7982713]
[1772739468688,3.69279651,88.824,88.77,7.37381887]
[1772739468990,3.69279651,88.824,88.771,3.7982713]
[1772739469486,3.69279651,88.824,88.78,3.57554757]
[1772739469684,3.69279651,88.824,88.781,3.7982713]
[1772739470089,10.13,88.83,88.79,3.57554757]
[1772739470588,3.69279651,88.839,88.781,3.7982713]
[1772739471389,10.131,88.823,88.781,3.7982713]
[1772739474093,1.96001126,88.854,88.72,0.00090701]
[1772739474094,10.131,88.815,88.768,3.7982713]
[1772739474292,3.69279651,88.819,88.77,3.57554757]
[1772739474693,3.69279651,88.808,88.76,3.57554757]
[1772739474889,3.57554757,88.8,88.754,3.7982713]
[1772739475090,3.69279651,88.808,88.754,3.7982713]
[1772739475997,10.134,88.793,88.754,3.7982713]
[1772739477390,10.135,88.786,88.754,3.7982713]
[1772739478295,3.69279651,88.808,88.761,3.7982713]
[1772739480300,10.132,88.807,88.761,3.7982713]
[1772739480499,3.71273455,88.823,88.78,3.57554757]
[1772739480899,13.97373532,88.874,88.72,0.00090701]
[1772739480900,3.71273455,88.799,88.75,3.57554757]
[1772739481599,3.71273455,88.799,88.76,3.57554757]
[1772739482496,3.71273455,88.813,88.77,3.57554757]
[1772739482800,3.71273455,88.828,88.79,3.57554757]
[1772739482999,3.71273455,88.828,88.781,3.74156778]
[1772739483296,3.57554757,88.85,88.79,3.57554757]
[1772739483495,3.71273455,88.849,88.8,7.31711535]
[1772739483701,3.71273455,88.849,88.81,3.57554757]
[1772739484096,3.71273455,88.849,88.801,3.74156778]
[1772739484297,3.71273455,88.849,88.808,10.132]
[1772739484601,3.71273455,88.849,88.801,3.74156778]
[1772739485297,3.71273455,88.829,88.78,3.57554757]
[1772739485491,3.71273455,88.828,88.78,3.57554757]
[1772739486096,3.71273455,88.844,88.8,3.57554757]
[1772739487200,10.128,88.843,88.8,3.57554757]
[1772739487792,10.129,88.836,88.8,3.57554757]
[1772739487994,3.71273455,88.844,88.791,3.74156778]
[1772739488795,3.71273455,88.839,88.791,3.74156778]
[1772739489406,10.13,88.829,88.791,3.74156778]
[1772739489701,3.71273455,88.839,88.791,3.74156778]
[1772739489895,3.71273455,88.835,88.785,3.74156778]
[1772739490100,3.71273455,88.835,88.79,3.57554757]
[1772739490402,3.71273455,88.835,88.732,27.65176864]
[1772739490403,3.71273455,88.829,88.771,3.74156778]
[1772739490702,3.57554757,88.82,88.771,3.74156778]
[1772739491103,3.71273455,88.829,88.771,3.74156778]
[1772739491503,3.71273455,88.829,88.78,7.31711535]
[1772739491801,3.71273455,88.844,88.781,3.74156778]
[1772739492105,3.71273455,88.844,88.8,3.57554757]
[1772739492306,3.71273455,88.844,88.791,3.74156778]
[1772739493101,17.73690514,88.869,88.791,3.74156778]
[1772739493102,3.71273455,88.839,88.791,3.74156778]
[1772739493298,3.71273455,88.829,88.78,3.57554757]
[1772739494106,3.71273455,88.829,88.781,3.74156778]
[1772739494308,3.71273455,88.829,88.77,3.57554757]
[1772739494503,3.71273455,88.829,88.771,3.74156778]
[1772739495402,10.131,88.816,88.771,3.74156778]
[1772739495702,10.131,88.816,88.773,3.74156778]
[1772739496010,3.71273455,88.829,88.773,3.74156778]
[1772739496907,3.71273455,88.844,88.791,3.74156778]
[1772739497510,3.71273455,88.839,88.78,3.57554757]
[1772739498207,3.71273455,88.855,88.801,3.74156778]
[1772739498400,3.57554757,88.85,88.801,3.74156778]
[1772739498600,10.128,88.843,88.801,3.74156778]
[1772739498800,3.71273455,88.855,88.81,7.31711535]
[1772739499207,10.127,88.851,88.81,7.31711535]
[1772739499410,3.71273455,88.855,88.81,3.74156778]
[1772739499609,10.127,88.852,88.81,7.31711535]
[1772739500410,10.127,88.852,88.81,3.74156778]
[1772739500605,10.128,88.845,88.8,3.57554757]
[1772739500811,3.71273455,88.849,88.8,3.57554757]
[1772739501407,3.71273455,88.849,88.8,7.31711535]
[1772739501617,3.71273455,88.849,88.801,3.74156778]
[1772739502521,3.57554757,88.86,88.802,3.74156778]
[1772739502817,3.71273455,88.859,88.802,3.74156778]
[1772739503118,10.128,88.846,88.802,3.74156778]
[1772739503520,3.71273455,88.859,88.802,3.74156778]
[1772739504621,10.127,88.853,88.804,3.74156778]
[1772739505322,10.127,88.853,88.806,3.74156778]
[1772739506723,10.127,88.853,88.808,3.74156778]
[1772739507624,3.71273455,88.859,88.808,3.74156778]
[1772739507625,10.128,88.846,88.808,3.74156778]
[1772739508020,3.63763686,88.839,88.791,3.72260846]
[1772739508223,10.13,88.827,88.791,3.72260846]
[1772739508818,10.129,88.834,88.791,3.72260846]
[1772739509628,3.56930573,88.85,88.801,3.72260846]
[1772739510227,3.56930573,88.85,88.804,10.133]
[1772739511429,3.56930573,88.85,88.801,3.72260846]
[1772739511430,3.67020837,88.848,88.801,3.72260846]
[1772739512224,3.56930573,88.84,88.801,3.72260846]
[1772739512927,3.56930573,88.86,88.811,3.94602879]
[1772739513129,3.67020837,88.867,88.811,3.94602879]
[1772739513630,3.56930573,88.86,88.811,3.94602879]
[1772739514531,3.67020837,88.859,88.811,3.94602879]
[1772739515334,10.128,88.849,88.811,3.94602879]
[1772739519740,3.67020837,88.859,88.813,3.94602879]
[1772739520840,10.126,88.858,88.815,10.131]
[1772739522140,10.126,88.858,88.813,3.94602879]
[1772739522141,10.127,88.853,88.813,3.94602879]
[1772739522342,13.79720837,88.853,88.813,3.94602879]
[1772739524142,3.67020837,88.852,88.813,3.94602879]
[1772739526439,10.126,88.859,88.815,3.94602879]
[1772739526942,3.67020837,88.865,88.821,3.94602879]
[1772739527443,3.67020837,88.859,88.811,3.94602879]
[1772739528541,10.127,88.852,88.811,3.94602879]
[1772739529333,3.67020837,88.845,88.8,3.56930573]
[1772739529740,3.67020837,88.845,88.753,27.65176864]
[1772739529741,7.2395141,88.83,88.781,3.94602879]
[1772739529937,7.2395141,88.83,88.782,3.94602879]
[1772739530436,3.56930573,88.82,88.782,3.94602879]
[1772739530646,3.67020837,88.819,88.77,3.56930573]
[1772739530846,3.67020837,88.819,88.769,3.94602879]
[1772739531439,10.132,88.811,88.769,3.94602879]
[1772739531640,3.56930573,88.82,88.769,3.94602879]
[1772739531845,3.67020837,88.809,88.76,3.56930573]
[1772739532248,3.67020837,88.809,88.761,3.94602879]
[1772739532849,30.73427052,88.853,88.72,27.65267565]
[1772739532850,3.56930573,88.83,88.771,3.94602879]
[1772739533147,3.67020837,88.829,88.771,3.94602879]
[1772739534149,3.67020837,88.839,88.791,3.94602879]
[1772739535550,3.67020837,88.829,88.777,3.94602879]
[1772739536152,3.67020837,88.829,88.777,14.08202879]
[1772739536450,3.67020837,88.809,88.75,3.56930573]
[1772739536644,3.67020837,88.809,88.751,3.94602879]
[1772739537449,3.67020837,88.808,88.758,10.138]
[1772739537850,3.56930573,88.8,88.758,10.138]
[1772739538050,3.67020837,88.808,88.758,10.138]
[1772739538250,3.67020837,88.808,88.766,10.137]
[1772739539048,3.67020837,88.808,88.758,10.138]
[1772739539450,3.56930573,88.8,88.758,10.138]
[1772739540249,3.84143285,88.806,88.751,3.94602879]
[1772739541250,3.84143285,88.798,88.74,7.1983338]
[1772739541444,3.84143285,88.798,88.741,3.62902807]
[1772739541844,3.56930573,88.79,88.741,3.62902807]
[1772739542254,3.84143285,88.798,88.741,3.62902807]
[1772739542849,10.134,88.794,88.754,10.138]
[1772739543059,10.134,88.794,88.754,13.76702807]
[1772739543556,3.84143285,88.798,88.754,13.76702807]
[1772739544350,3.84143285,88.798,88.756,13.76702807]
[1772739544652,3.84143285,88.798,88.756,3.62902807]
[1772739545955,3.84143285,88.791,88.741,3.62902807]
[1772739546148,3.84143285,88.779,88.73,3.56930573]
[1772739546348,3.84143285,88.779,88.727,3.62902807]
[1772739546551,3.84143285,88.779,88.728,13.77002807]
[1772739547250,3.84143285,88.769,88.728,10.141]
[1772739548049,3.56930573,88.78,88.731,3.62902807]
[1772739548247,3.84143285,88.785,88.74,3.56930573]
[1772739548455,3.56930573,88.79,88.741,3.62902807]
[1772739549056,3.84143285,88.789,88.741,13.76902807]
[1772739549457,3.56930573,88.78,88.741,13.76902807]
[1772739549952,3.56930573,88.78,88.747,10.139]
[1772739550659,3.56930573,88.8,88.753,10.138]
[1772739550860,3.84143285,88.843,88.761,3.62902807]
[1772739551056,3.56930573,88.81,88.762,13.76602807]
[1772739551461,7.41073858,88.81,88.762,13.76602807]
[1772739555262,7.41073858,88.81,88.762,3.62902807]
[1772739555862,7.41073858,88.81,88.763,3.62902807]
[1772739555863,10.132,88.808,88.763,3.62902807]
[1772739557567,3.56930573,88.84,88.791,3.62902807]
[1772739557966,3.84143285,88.839,88.79,3.56930573]
[1772739558267,3.84143285,88.839,88.791,3.62902807]
[1772739558469,3.56930573,88.83,88.78,3.56930573]
[1772739558666,3.56930573,88.83,88.78,7.1983338]
[1772739559072,3.56930573,88.83,88.781,3.62902807]
[1772739559374,10.129,88.834,88.782,3.62902807]
[1772739559574,3.84143285,88.837,88.782,3.62902807]
[1772739559575,3.84143285,88.837,88.79,3.56930573]
[1772739560172,3.84143285,88.833,88.79,3.56930573]
[1772739560371,3.84143285,88.833,88.782,3.62902807]
[1772739560771,3.84143285,88.809,88.762,3.62902807]
[1772739560972,3.56930573,88.8,88.762,3.62902807]
[1772739561470,10.48712026,88.857,88.712,20.83292543]
[1772739561471,3.56930573,88.79,88.746,3.62902807]
[1772739561668,3.84143285,88.779,88.73,3.62902807]
[1772739562471,3.56930573,88.77,88.73,3.62902807]
[1772739563277,10.137,88.768,88.72,0.00090701]
[1772739563481,20.264,88.814,88.72,0.00090701]
[1772739563482,3.56930573,88.75,88.72,0.00090701]
[1772739563980,3.84143285,88.759,88.72,0.00090701]
[1772739565474,3.56930573,88.76,88.72,0.00090701]
[1772739565674,3.56930573,88.77,88.72,0.00090701]
[1772739565873,3.56930573,88.77,88.723,3.62902807]
[1772739566271,3.56930573,88.78,88.73,3.56930573]
[1772739566572,3.56930573,88.78,88.731,3.62902807]
[1772739566778,7.41073858,88.79,88.74,3.56930573]
[1772739566978,10.134,88.789,88.74,3.56930573]
[1772739567280,10.134,88.789,88.72,0.00090701]
[1772739567281,3.56930573,88.8,88.75,3.56930573]
[1772739567678,3.84143285,88.799,88.743,10.14]
[1772739567878,3.56930573,88.79,88.743,10.14]
[1772739568483,3.84143285,88.799,88.743,10.14]
[1772739569186,3.84143285,88.799,88.741,3.62902807]
[1772739569187,10.134,88.791,88.741,3.62902807]
[1772739570585,3.79089319,88.79,88.741,3.62902807]
[1772739571786,3.79089319,88.809,88.747,3.67323416]
[1772739572583,3.79089319,88.824,88.767,10.137]
[1772739573382,3.79089319,88.822,88.767,10.137]
[1772739573977,13.92189319,88.82,88.767,10.137]
[1772739574587,3.79089319,88.819,88.767,10.137]
[1772739574989,10.132,88.812,88.761,3.67323416]
[1772739576486,17.75245191,88.825,88.762,3.67323416]
[1772739576685,3.79089319,88.834,88.762,3.67323416]
[1772739576881,10.128,88.846,88.787,10.135]
[1772739577086,3.79089319,88.858,88.788,3.67323416]
[1772739577580,3.79089319,88.858,88.751,3.67323416]
[1772739577980,13.91989319,88.832,88.771,10.136]
[1772739578185,3.79089319,88.831,88.772,3.67323416]
[1772739579284,3.79089319,88.819,88.757,3.67323416]
[1772739579687,10.131,88.823,88.771,10.136]
[1772739579884,10.131,88.823,88.772,3.67323416]
[1772739581492,10.131,88.823,88.775,3.67323416]
[1772739582689,10.131,88.818,88.775,3.67323416]
[1772739583484,3.79089319,88.822,88.775,3.67323416]
[1772739584489,10.131,88.821,88.775,3.67323416]
[1772739587195,10.131,88.821,88.777,10.136]
[1772739587900,3.79089319,88.819,88.768,10.137]
[1772739588091,3.79089319,88.819,88.768,3.67323416]
[1772739588594,3.79089319,88.819,88.78,13.70548207]
[1772739588795,3.79089319,88.819,88.78,10.135]
[1772739590194,3.79089319,88.819,88.737,20.83292543]
[1772739590195,3.79089319,88.833,88.79,3.57048207]
[1772739590401,3.79089319,88.833,88.79,7.24371623]
[1772739590604,3.79089319,88.833,88.791,3.67323416]
[1772739591393,3.79089319,88.833,88.792,10.134]
[1772739591599,3.79089319,88.833,88.791,3.67323416]
[1772739591798,3.57048207,88.84,88.791,3.67323416]
[1772739592099,3.79089319,88.819,88.776,3.67323416]
[1772739592794,3.79089319,88.819,88.777,10.136]
[1772739593100,3.57048207,88.84,88.79,3.57048207]
[1772739593296,3.57048207,88.84,88.791,3.67323416]
[1772739593894,3.57048207,88.86,88.801,3.67323416]
[1772739594101,3.57048207,88.86,88.81,3.57048207]
[1772739594302,10.127,88.853,88.81,3.57048207]
[1772739594498,10.127,88.853,88.804,3.67323416]
[1772739594700,13.03897885,88.859,88.804,3.67323416]
[1772739595000,3.79089319,88.859,88.804,3.67323416]
[1772739595198,13.69548207,88.87,88.823,10.13]
[1772739595501,13.69548207,88.87,88.823,3.67323416]
[1772739595697,3.57048207,88.87,88.823,3.67323416]
[1772739596301,3.57048207,88.87,88.824,10.13]
[1772739596501,3.57048207,88.87,88.823,3.67323416]
[1772739598498,10.125,88.869,88.823,3.67323416]
[1772739599407,3.79089319,88.869,88.811,3.67323416]
[1772739600708,3.79089319,88.869,88.82,10.131]
[1772739600911,3.79089319,88.869,88.821,3.66234475]
[1772739601201,3.61239593,88.883,88.831,3.66234475]
[1772739601602,3.61239593,88.899,88.85,3.57048207]
[1772739601906,3.57048207,88.91,88.86,3.57048207]
[1772739602104,3.61239593,88.915,88.86,7.23282682]
[1772739602403,3.61239593,88.929,88.87,7.23282682]
[1772739602607,3.57048207,88.91,88.86,3.57048207]
[1772739603104,3.61239593,88.889,88.84,3.57048207]
[1772739603400,3.61239593,88.889,88.835,3.66234475]
[1772739603901,3.57048207,88.88,88.835,3.66234475]
[1772739604100,3.57048207,88.88,88.821,3.66234475]
[1772739604598,3.61239593,88.887,88.833,3.66234475]
[1772739605506,3.61239593,88.887,88.835,3.66234475]
[1772739606006,10.122,88.899,88.839,3.66234475]
[1772739606510,3.61239593,88.906,88.82,9.55261334]
[1772739606511,3.61239593,88.906,88.844,3.66234475]
[1772739607208,3.61239593,88.906,88.849,3.66234475]
[1772739608409,3.61239593,88.906,88.853,3.66234475]
[1772739609199,3.61239593,88.903,88.843,10.128]
[1772739609408,3.61239593,88.903,88.837,3.66234475]
[1772739610506,3.61239593,88.9,88.839,10.129]
[1772739611106,3.61239593,88.917,88.849,3.66234475]
[1772739612403,10.121,88.909,88.852,3.66234475]
[1772739612908,3.61239593,88.917,88.852,3.66234475]
[1772739613102,3.61239593,88.917,88.856,3.66234475]
[1772739613811,10.12,88.914,88.856,3.66234475]
[1772739615110,3.61239593,88.937,88.868,3.66234475]
[1772739615315,3.61239593,88.937,88.871,3.66234475]
[1772739615610,9.55261334,88.97,88.871,3.66234475]
[1772739615611,1.95756913,88.963,88.871,3.66234475]
[1772739615810,3.61239593,88.943,88.89,3.66234475]
[1772739616004,3.61239593,88.943,88.871,3.66234475]
[1772739616811,3.61239593,88.943,88.882,3.66234475]
[1772739617914,3.61239593,88.962,88.893,3.66234475]
[1772739618313,10.115,88.959,88.901,10.122]
[1772739618514,10.115,88.959,88.902,3.66234475]
[1772739618709,3.61239593,88.962,88.902,3.66234475]
[1772739619113,3.61239593,88.953,88.902,3.66234475]
[1772739619518,10.114,88.968,88.912,3.66234475]
[1772739620419,3.61239593,88.984,88.919,3.66234475]
[1772739620616,3.61239593,89.0,88.919,3.66234475]
[1772739620815,10.111,88.992,88.939,10.117]
[1772739621116,3.61239593,89.0,88.936,3.66234475]
[1772739621318,3.61239593,89.0,88.91,9.55261334]
[1772739621319,13.72239593,89.0,88.939,3.66234475]
[1772739622020,3.61239593,89.013,88.954,10.116]
[1772739622221,3.61239593,89.013,88.939,3.66234475]
[1772739622412,10.11,89.004,88.944,10.117]
[1772739622617,3.61239593,89.003,88.945,3.66234475]
[1772739623013,3.61239593,88.991,88.927,3.66234475]
[1772739623218,3.61239593,88.989,88.927,3.66234475]
[1772739623418,3.61239593,88.989,88.891,3.66234475]
[1772739623618,10.114,88.972,88.915,10.12]
[1772739624021,10.114,88.972,88.915,13.78234475]
[1772739624315,10.114,88.972,88.89,9.55261334]
[1772739624316,10.114,88.972,88.919,3.66234475]
[1772739626918,10.113,88.981,88.919,3.66234475]
[1772739627111,3.61239593,89.007,88.919,3.66234475]
[1772739627313,3.61239593,89.024,88.963,3.66234475]
[1772739627516,10.108,89.019,88.963,3.66234475]
[1772739628519,1.95559452,89.044,88.965,3.75373268]
[1772739628725,3.86352226,89.044,88.971,3.75373268]
[1772739629125,3.86352226,89.044,88.975,3.75373268]
[1772739629723,3.86352226,89.044,88.985,3.75373268]
[1772739629921,3.86352226,89.044,88.97,9.55261334]
[1772739629922,3.86352226,89.069,88.991,3.75373268]
[1772739630223,3.69980382,89.055,88.971,3.67256365]
[1772739630423,3.69980382,89.049,88.971,3.67256365]
[1772739630925,3.69980382,89.049,88.9,157.455]
[1772739630926,3.69980382,89.026,88.941,3.67256365]
[1772739631726,10.11,89.004,88.945,10.117]
[1772739632830,3.69980382,89.001,88.945,10.117]
[1772739633422,13.80880382,89.012,88.953,3.67256365]
[1772739633728,3.69980382,89.011,88.921,3.67256365]
[1772739634130,10.111,88.997,88.945,10.116]
[1772739634333,10.111,88.997,88.921,3.67256365]
[1772739634528,6.811,88.997,88.921,3.67256365]
[1772739635327,10.112,88.988,88.936,3.67256365]
[1772739636532,10.112,88.988,88.937,10.117]
[1772739637229,10.113,88.977,88.919,3.67256365]
[1772739637934,10.112,88.986,88.921,3.67256365]
[1772739638134,3.69980382,88.993,88.921,3.67256365]
[1772739638434,13.22014945,89.01,88.952,3.67256365]
[1772739638633,3.69980382,89.01,88.952,3.67256365]
[1772739639140,3.69980382,89.007,88.952,3.67256365]
[1772739639732,3.69980382,89.004,88.952,3.67256365]
[1772739639932,3.69980382,89.004,88.942,10.117]
[1772739640435,3.69980382,89.004,88.934,3.67256365]
[1772739640637,3.69980382,89.029,88.934,3.67256365]
[1772739641038,3.69980382,89.027,88.958,3.67256365]
[1772739642946,3.69980382,89.018,88.959,10.115]
[1772739643647,10.109,89.009,88.958,3.67256365]
[1772739643944,9.52034563,89.03,88.92,9.52034563]
[1772739643945,3.69980382,89.008,88.937,3.67256365]
[1772739644246,3.69980382,89.008,88.956,10.115]
[1772739645047,3.69980382,89.006,88.948,10.116]
[1772739646450,3.69980382,88.995,88.941,10.117]
[1772739646842,3.69980382,88.991,88.941,10.117]
[1772739647247,10.112,88.99,88.941,10.117]
[1772739648151,10.112,88.983,88.937,3.67256365]
[1772739648354,3.69980382,88.991,88.937,3.67256365]
[1772739648844,10.112,88.983,88.937,3.67256365]
[1772739649950,10.112,88.983,88.933,10.118]
[1772739650151,3.69980382,88.975,88.901,3.67256365]
[1772739650547,13.81280382,88.975,88.925,10.119]
[1772739650953,13.81280382,88.975,88.925,13.79156365]
[1772739651447,3.69980382,88.991,88.925,3.67256365]
[1772739651747,157.219,89.035,88.909,3.67256365]
[1772739651748,3.69980382,88.989,88.909,3.67256365]
[1772739651956,10.115,88.959,88.91,10.121]
[1772739652148,3.69980382,88.966,88.909,3.67256365]
[1772739652349,3.69980382,88.989,88.909,3.67256365]
[1772739652954,3.69980382,88.989,88.9,9.52034563]
[1772739652955,10.112,88.982,88.926,13.79156365]
[1772739653454,3.69980382,88.989,88.926,3.67256365]
[1772739653753,10.113,88.974,88.929,10.118]
[1772739654953,3.69980382,88.989,88.935,3.67256365]
[1772739655556,3.69980382,88.989,88.942,13.78956365]
[1772739656152,3.69980382,88.988,88.934,10.118]
[1772739656351,3.69980382,88.988,88.926,3.67256365]
[1772739657452,10.112,88.983,88.934,10.118]
[1772739657653,10.112,88.983,88.926,3.67256365]
[1772739657853,10.112,88.983,88.932,10.118]
[1772739658250,3.69980382,88.98,88.932,13.79056365]
[1772739658448,3.69980382,88.98,88.923,10.119]
[1772739658949,9.52034563,88.99,88.931,3.67256365]
[1772739659147,3.69980382,88.996,88.931,3.67256365]
[1772739661454,10.112,88.989,88.94,10.117]
[1772739661655,3.69980382,88.996,88.92,9.52034563]
[1772739661656,3.69980382,88.996,88.941,3.70667891]
[1772739662154,10.48712026,89.028,88.941,3.70667891]
[1772739662354,3.93248473,89.026,88.941,3.70667891]
[1772739662654,3.93248473,89.024,88.941,3.70667891]
[1772739662854,3.93248473,89.022,88.941,3.70667891]
[1772739663045,3.93248473,89.02,88.941,3.70667891]
[1772739663250,3.93248473,88.997,88.941,3.70667891]
[1772739664156,10.111,88.993,88.941,3.70667891]
[1772739664453,3.93248473,88.993,88.941,3.70667891]
[1772739664650,3.93248473,88.986,88.923,3.70667891]
[1772739666352,3.93248473,88.986,88.924,10.119]